{"text_format":"1","workbook":"xlsx","n_sheets":2,"sheets":["Lookup_Table","Stationary Caterpillar"],"not_rendered":{"charts":0,"images":5,"macros":0,"external_links":0,"defined_names":2,"comments":0,"pivot_tables":0},"unopened":[],"bounds":{"document_bytes":16777216,"sheet_cells":100000,"rows_first":2000,"rows_last":500,"rows_between":2000,"halvings":0,"cell_chars":16384,"cell_head_chars":4096},"cells_cut":0,"cells_raw":0,"read":"whole","date_system":"1900"}

{"sheet":"Lookup_Table","index":0,"n_rows":120,"n_cols":5,"rows_kept":120,"cut":false,"hidden":true,"merged":[]}
["Price","Item #","Table20.Brand","Table20.Description","Table20.Link"]
[111.6,7000,"Johnny's Selected Seeds","Moveable Caterpillar Tunnel Hoop Bender – 12'","https://www.johnnyseeds.com/tools-supplies/greenhouse-and-tunnel-supplies/benders/moveable-caterpillar-tunnel-hoop-bender-12-quick-hoops-7000.html"]
[94.5,7033,"Johnny's Selected Seeds","Sidewall Hand Crank","https://www.johnnyseeds.com/tools-supplies/greenhouse-and-tunnel-supplies/hardware-accessories/sidewall-hand-crank-7033.html"]
[9.4499999999999993,7035,"Johnny's Selected Seeds","Snap Clamps for 1-3/8 in. Top-Rail, 10 pack","https://www.johnnyseeds.com/tools-supplies/greenhouse-and-tunnel-supplies/hardware-accessories/snap-clamps-for-1%22-pvc-or-chain-link-fence-top-rail-7035.html"]
[24.51,181697,"Home Depot","10 ft length of 1-3/8\" top rail","https://www.homedepot.com/p/Everbilt-Chain-Link-Fence-1-3-8-in-Diameter-x-10-ft-Long-17-Gauge-Thick-Galvanized-Steel-Top-Rail-Post-328913DPTEB/312373065"]
[8.1,7036,"Johnny's Selected Seeds","Snap Clamps for 3/4\" PVC or 1\" EMT","https://www.johnnyseeds.com/tools-supplies/greenhouse-and-tunnel-supplies/hardware-accessories/snap-clamps-for-3-4%22-pvc-or-1%22-emt-7036.html"]
[31.97,623105,"Home Depot","8 ft length of 1-5/8 in. line post","https://www.homedepot.com/p/Everbilt-1-5-8-in-Dia-x-8-ft-16-Gauge-Galvanized-Steel-Chain-Link-Fence-Line-Post-328923DPTSEB/312373067"]
[2.5,7040,"Johnny's Selected Seeds","4 ft. length of Poly Latch (\"Wiggle\") Wire","https://www.johnnyseeds.com/tools-supplies/greenhouse-and-tunnel-supplies/hardware-accessories/poly-latch-wire-4-7040.html"]
[23.97,320858,"Home Depot","6 ft length of 1-5/8 in. line post","https://www.homedepot.com/p/Everbilt-1-5-8-in-Dia-x-6-ft-16-Gauge-Galvanized-Steel-Chain-Link-Fence-Line-Post-328921DPTSEB/312373050"]
[12.5,7041,"Johnny's Selected Seeds","8 ft. length of Poly Latch (\"Wiggle\") Channel","https://www.johnnyseeds.com/tools-supplies/greenhouse-and-tunnel-supplies/hardware-accessories/poly-latch-channel-8-7041.html"]
[247.5,7176,"Johnny's Selected Seeds","Tufflite IV Greenhouse Film, 28 x 65 ft.","https://www.johnnyseeds.com/tools-supplies/greenhouse-and-tunnel-supplies/greenhouse-film/tufflite/tufflite-iv-28-x-65-greenhouse-film-7176.html"]
[0.22,23,"www.boltdepot.com","Hex bolts, Zinc plated steel, 5/16\"-18 x 2\"","https://boltdepot.com/Product-Details?product=23"]
[305.10000000000002,7177,"Johnny's Selected Seeds","Tufflite IV Greenhouse Film, 28 x 100 ft.","https://www.johnnyseeds.com/tools-supplies/greenhouse-and-tunnel-supplies/greenhouse-film/tufflite/tufflite-iv-28-x-100-greenhouse-film-7177.html"]
[0.15,199,"www.boltdepot.com","1/4-20 x 2 in. hex head bolt","https://boltdepot.com/Product-Details?product=199"]
[350.1,7178,"Johnny's Selected Seeds","Tufflite IV Greenhouse Film, 28 x 125 ft.","https://www.johnnyseeds.com/tools-supplies/greenhouse-and-tunnel-supplies/greenhouse-film/tufflite/tufflite-iv-28-x-125-greenhouse-film-7178.html"]
[0.23,218,"www.boltdepot.com","Hex bolts, Zinc plated steel, 3/8\"-16 x 1\"","https://boltdepot.com/Product-Details?product=218"]
[193.5,7300,"Johnny's Selected Seeds","Gothic Tunnel Hoop Bender – 14'","https://www.johnnyseeds.com/tools-supplies/greenhouse-and-tunnel-supplies/benders/gothic-tunnel-hoop-bender-14-quick-hoops-7300.html"]
[1.21,859,"www.boltdepot.com","3/8 in. x 5 in. hex tap bolt (fully threaded)","https://boltdepot.com/Product-Details?product=859"]
[449.1,7301,"Johnny's Selected Seeds","Tufflite IV™ – 32' x 100'","https://www.johnnyseeds.com/tools-supplies/greenhouse-and-tunnel-supplies/greenhouse-film/tufflite/tufflite-iv-32-x-100-greenhouse-film-7301.html"]
[0.59,2032,"www.boltdepot.com","#10 x 4 in. wood screw","https://boltdepot.com/Product-Details?product=2032"]
[110.7,9018,"Johnny's Selected Seeds","Quick Hoops High Tunnel Bender","https://www.johnnyseeds.com/tools-supplies/greenhouse-and-tunnel-supplies/benders/high-tunnel-hoop-bender-12-quick-hoops-9018.html"]
[11.73,732050,"Home Depot","1 in. x 8 in. x 16 ft. ledger board ","https://www.homedepot.com/p/1-in-x-8-in-x-16-ft-Ledger-Common-Softwood-Boards-234611/202527794"]
[7.88,9150,"Johnny's Selected Seeds","Snap Clamps for ¾ in. EMT, 10 pack","https://www.johnnyseeds.com/tools-supplies/greenhouse-and-tunnel-supplies/hardware-accessories/snap-clamps-for-3-4%22-emt-or-1-2%22-pvc-9150.html"]
[7.0000000000000007E-2,2396,"www.boltdepot.com","Sheet metal screws, Self drilling, Hex washer head, Zinc plated steel, #6 x 1/2\"","https://boltdepot.com/Product-Details?product=2396"]
[34.65,9482,"Johnny's Selected Seeds","Ground Post Driver","https://www.johnnyseeds.com/tools-supplies/greenhouse-and-tunnel-supplies/hardware-accessories/ground-post-driver-9482.0.html"]
[5.17,2405,"www.boltdepot.com","#10 x 3/4 in. hex-head self-tapping screws, bag of 100","https://boltdepot.com/Product-Details?product=2405"]
[5.81,9542,"Johnny's Selected Seeds","Cross Connector for 1.315\" x 1.315\" Pipe, pkg of 2","https://www.johnnyseeds.com/tools-supplies/greenhouse-and-tunnel-supplies/hardware-accessories/cross-connectors-2-count-9542.html"]
[3.95,2520,"www.boltdepot.com","#8 x 3/4\" phillips-head self-tapping screws, bag of 100","https://boltdepot.com/Product-Details?product=2520"]
[35.1,9604,"Johnny's Selected Seeds","#9 Wire, Coil of 60 ft.","https://www.johnnyseeds.com/tools-supplies/row-covers-and-accessories/supports-anchors/coiled-%239-support-wire-60-9604.html"]
[0.12,2624,"www.boltdepot.com","1/4 -20 nylock lock nut","https://boltdepot.com/Product-Details?product=2624"]
[170.1,9630,"Johnny's Selected Seeds","Tufflite IV™ – 20' x 65'","https://www.johnnyseeds.com/tools-supplies/greenhouse-and-tunnel-supplies/greenhouse-film/tufflite/tufflite-iv-20-x-65-greenhouse-film-9630.html"]
[0.05,2648,"www.boltdepot.com","1/4 in. hex nut","https://boltdepot.com/Product-Details?product=2648"]
[310.5,9644,"Johnny's Selected Seeds","Tufflite IV™ – 20' x 125'","https://www.johnnyseeds.com/tools-supplies/greenhouse-and-tunnel-supplies/greenhouse-film/tufflite/tufflite-iv-20-x-125-greenhouse-film-9644.html"]
[197.1,9645,"Johnny's Selected Seeds","Tufflite IV Greenhouse Film, 24 x 65 ft.","https://www.johnnyseeds.com/tools-supplies/greenhouse-and-tunnel-supplies/greenhouse-film/tufflite/tufflite-iv-24-x-65-greenhouse-film-9645.html"]
[346.5,9701,"Johnny's Selected Seeds","Tufflite IV Greenhouse Film, 24 x 125 ft.","https://www.johnnyseeds.com/tools-supplies/greenhouse-and-tunnel-supplies/greenhouse-film/tufflite/tufflite-iv-24-x-125-greenhouse-film-9701.html"]
[71.55,9723,"Johnny's Selected Seeds","Anchoring Pins™ Fabric Staples – 500 Count","https://www.johnnyseeds.com/tools-supplies/row-covers-and-accessories/supports-anchors/anchoring-pins-fabric-staples-500-count-9723.html"]
[229,9724,"Johnny's Selected Seeds","Pro 5 Weed Barrier – 4' x 250'","https://www.johnnyseeds.com/tools-supplies/mulches-and-weed-barrier/fabric-mulch/pro-5-weed-barrier-4-x-250-landscape-fabric-9724.html"]
[114.3,9725,"Johnny's Selected Seeds","#9 Wire, Coil of 550 ft.","https://www.johnnyseeds.com/tools-supplies/row-covers-and-accessories/supports-anchors/coiled-%239-support-wire-550-9725.html"]
[7.0000000000000007E-2,2649,"www.boltdepot.com","5/16\"-18 hex nut","https://boltdepot.com/Product-Details?product=2649"]
[0.47,"BB138","Chain Link Fittings","1-3/8 in. brace band","https://chainlinkfittings.com/store/1-3-8-brace-bands-chain-link-fence.html"]
[0.06,2662,"www.boltdepot.com","3/8 in. hex jam nut","https://boltdepot.com/Product-Details?product=2662"]
[0.21,2691,"www.boltdepot.com","3/8 in. wing nut","https://boltdepot.com/Product-Details?product=2691"]
[0.11,2750,"www.boltdepot.com","Carriage bolts, Zinc plated steel, 1/4\"-20 x 1\"","https://boltdepot.com/Product-Details?product=2750"]
[0.09,2525,"www.boltdepot.com","Sheet metal screws, Self drilling, Phillips pan head, Zinc plated steel, #10 x 3/4\"","https://boltdepot.com/Product-Details?product=2525"]
[0.15,2753,"www.boltdepot.com","1/4 in. x 1.75 in. carriage bolt","https://boltdepot.com/Product-Details?product=2753"]
[3.85,161640,"Home Depot","2 in. x 4 in. x 8 ft. whitewood stud","https://www.homedepot.com/p/2-in-x-4-in-x-8-ft-Prime-Stud-058449/312528776"]
[27.98,101697,"Home Depot","26 in. x 8 ft. clear polycarbonate roofing panel","https://www.homedepot.com/p/Suntuf-26-in-x-8-ft-Corrugated-Polycarbonate-Roof-Panel-in-Clear-101697/100021329"]
[0.3,2760,"www.boltdepot.com","1/4 in. x 4 in. carriage bolt","https://boltdepot.com/Product-Details?product=2760"]
[0.1,2650,"www.boltdepot.com","Hex nuts, Zinc plated steel, 3/8\"-16","https://boltdepot.com/Product-Details?product=2650"]
[9.57,784261,"Home Depot","1 in. x 4 in. x 8 ft. board","https://www.homedepot.com/p/1-in-x-4-in-x-8-ft-Premium-Cedar-Square-Edge-Board-784261/202070415"]
[3.5,237042,"Home Depot","3 in. door hinge (with screws)","https://www.homedepot.com/p/Everbilt-3-in-Square-Corner-Satin-Brass-Door-Hinge-14989/202558080"]
[4.2699999999999996,241725,"Home Depot","5.75 in. zinc plated door pull (with screws)","https://www.homedepot.com/p/Everbilt-5-3-4-in-Zinc-Plated-Door-Pull-15181/202033999"]
[3.78,474206,"Home Depot","6 in. zinc plated hook-and-eye latch","https://www.homedepot.com/p/Everbilt-6-in-Zinc-Plated-Hook-and-Eye-15335/202034263"]
[12.72,161756,"Home Depot","2 in. x 6 in. x 12 ft. spruce/pine/fir board","https://www.homedepot.com/p/2-in-x-6-in-x-12-ft-KD-HT-SPF-Dimensional-Lumber-058445/312528843"]
[9.9700000000000006,134228,"Home Depot","#9 x 2-1/2 in. wood screws, 1 lb. box","https://www.homedepot.com/p/Grip-Rite-9-x-2-1-2-in-2-Phillips-Bugle-Head-Coarse-Thread-Sharp-Point-Polymer-Coated-Exterior-Screws-1-lb-Pack-PTN212S1/100173447"]
[5.41,203106,"Home Depot","10 ft length of 1/2 in. EMT","https://www.homedepot.com/p/1-2-in-x-10-ft-Electrical-Metallic-Tubing-EMT-Conduit-8511-103HD/330333257"]
[3.11,103659,"Home Depot","1/2 in. iron water pipe T fitting","https://www.homedepot.com/p/Southland-1-2-in-Black-Malleable-Iron-Tee-Fitting-520-603HN/100189151"]
[9.52,203114,"Home Depot","10 ft length of 3/4 in. EMT","https://www.homedepot.com/p/3-4-in-x-10-ft-Electric-Metallic-Tube-EMT-Conduit-8511-104HD/330385394"]
[5.24,403636,"Home Depot","3/4 in. EMT compression fittings, 5 pack","https://www.homedepot.com/p/3-4-in-Electric-Metallic-Tube-EMT-Compression-Coupling-5-Pack-20222/100178967"]
[null,"550C-WHT1000","The Paracord Store","White 550 Paracord","https://theparacordstore.com/products/white-paracord?variant=42776164499607"]
[12.41,727401,"Home Depot","#4 zinc plated steel screw eyes, pack of 25","https://www.homedepot.com/p/Everbilt-4-Zinc-Plated-Steel-Screw-Eye-25-Pack-803662/204273859"]
[13.73,372074,"Home Depot","3/8 x 8 in. hook and eye turnbuckle","https://www.homedepot.com/p/Lehigh-350-lb-3-8-in-x-8-in-Stainless-Steel-Hook-and-Eye-Turnbuckle-7112/100117143"]
[0.16,2769,"www.boltdepot.com","Carriage bolts, Zinc plated steel, 5/16\"-18 x 1\"","https://boltdepot.com/Product-Details?product=2769"]
[1.75,312373166,"Home Depot","1-3/8 in. Galvanized Steel Chain Link Fence Tension Band for Fence Rail","https://www.homedepot.com/p/Everbilt-1-3-8-in-Galvanized-Steel-Chain-Link-Fence-Tension-Band-for-Fence-Rail-328522EB/312373166"]
[7.98,205960892,"Home Depot","1-3/4 in. x 3-1/2 in. x 6 ft. Green Steel Fence T-Post with Anchor Plate","https://www.homedepot.com/p/Everbilt-1-3-4-in-x-3-1-2-in-x-6-ft-Green-Steel-Fence-T-Post-with-Anchor-Plate-901176EB/205960892"]
[5.75,205960881,"Home Depot","1-1/4 in. x 3/4 in. x 3 ft. 14-Gauge Green Steel U-Fence Post with Anchor Plate","https://www.homedepot.com/p/Everbilt-1-1-4-in-x-3-4-in-x-3-ft-14-Gauge-Green-Steel-U-Fence-Post-with-Anchor-Plate-901153EB/205960881"]
[5.98,461443,"Home Depot","1 in. x 2 in. x 1.5 ft. grade stakes, 12 pack","https://www.homedepot.com/p/Grade-Stakes-Pine-12-Pack-Common-1-in-x-2-in-x-1-1-2-ft-Actual-562-in-x-1-375-in-x-17-5-in-461443/203316903"]
[27.36,202719050,"Home Depot","30 in. earth anchors, 4 pack","https://www.homedepot.com/p/ShelterLogic-30-in-Earth-Anchor-Set-4-Piece-w-Heavy-Duty-Corrosion-Resistant-Steel-Construction-and-Spinnable-Corkscrew-Design-10075/202719050"]
[12.44,321922,"Home Depot","5/16-18 x 8-7/8 in. hook and hook turnbuckle, 5 pack","https://www.homedepot.com/p/Hardware-Essentials-5-16-18-in-x-8-7-8-in-Zinc-Plated-Hook-and-Hook-Turnbuckle-5-Pack-321922/203810235"]
[5.1100000000000003,103667,"Home Depot","3/4 in. iron water pipe T fitting","https://www.homedepot.com/p/Southland-3-4-in-Black-Malleable-Iron-FIP-x-FIP-x-FIP-Tee-Fitting-520-604HN/100073073"]
[5.35,106151,"Home Depot","1/2 in. x 2 ft. rebar","https://www.homedepot.com/p/1-2-in-x-2-ft-4-Rebar-05152/202094274"]
[3.28,117741,"Home Depot","1/4 in. x 7-3/4 in. Zinc-Plated Turnbuckles with Hook & Eye","https://www.homedepot.com/p/Everbilt-1-4-in-x-7-3-4-in-Zinc-Plated-Turnbuckle-Hook-Eye-807086/204276134"]
[16.48,580015,"Home Depot","10 ft length of 1 in. EMT for scissor doors","https://www.homedepot.com/p/1-in-x-10-ft-Electrical-Metallic-Tubing-EMT-Conduit-550210000/304229415"]
[3.68,120583,"Home Depot","6 in. 12-Gauge Heavy Strap Ties","https://www.homedepot.com/p/Simpson-Strong-Tie-HRS-6-in-12-Gauge-Galvanized-Heavy-Strap-Tie-HRS6/100374840"]
[9.98,202972266,"Home Depot","#2 x 15 ft. Zinc Plated Medium Dog Run Chain","https://www.homedepot.com/p/Everbilt-3-x-15-ft-Zinc-Plated-Steel-Double-Loop-Chain-803072/203958780"]
[9.9700000000000006,134380,"Home Depot","#10 x 3 in. Phillips Bugle-Head Wood Screws, 1 lb. box","https://www.homedepot.com/p/Grip-Rite-9-x-3-in-2-Phillips-Bugle-Head-Coarse-Thread-Sharp-Point-Polymer-Coated-Exterior-Screw-1-lb-Pack-PTN3S1/100115639?N=5yc1vZc2bl"]
[47.85,266795,"Home Depot","2 ft. x 25 ft. Hardware Cloth, 1/2 in. mesh","https://www.homedepot.com/p/Everbilt-Galvanized-Steel-1-2-in-Mesh-2-ft-x-25-ft-19-Gauge-Hardware-Cloth-308224EB/205960837"]
[6.15,161659,"Home Depot","2 in. x 4 in. x 10 ft. spruce, pine, or fir lumber","https://www.homedepot.com/p/2-in-x-4-in-x-10-ft-Standard-and-Better-Kiln-Dried-Heat-Treated-Spruce-Pine-Fir-Lumber-161659/100080482"]
[1.1000000000000001,423823,"Home Depot","1-3/8\" End Cap","https://www.homedepot.com/p/Everbilt-1-3-8-in-Chain-Link-Fence-Aluminum-Rail-End-328550EB/312373152"]
[17.63,161799,"Home Depot","2 in. x 6 in. x 16 ft. spruce, pine, or fir lumber","https://www.homedepot.com/p/Unbranded-2-in-x-6-in-x-16-ft-2-Better-Kiln-Dried-Heat-Treated-Spruce-Pine-Fir-Lumber-161799/202086799"]
[18.98,253944,"Home Depot","5/4 in. x 6 in. x 16 ft. deck boards","https://www.homedepot.com/p/WeatherShield-5-4-in-x-6-in-x-16-ft-Ground-Contact-Pressure-Treated-Premium-Southern-Yellow-Pine-Decking-Board-253944/206966950?keyword=1-1%2F4+in.+x+6+in.+x+16+ft.+Pressure-Treated+Decking+Board"]
[12.98,175544,"Home Depot","T-post anchor for ends","https://www.homedepot.com/p/Everbilt-6-1-2-ft-H-Green-Steel-T-Post-710249930/317766972"]
[0.98,208229,"Home Depot","2 in. x 4 in. 20-Gauge Framing Brackets","https://www.homedepot.com/p/Simpson-Strong-Tie-FB-ZMAX-Galvanized-Fence-Rail-Bracket-for-2x4-Nominal-Lumber-FB24Z/100375311?keyword=fb24z"]
[1.64,654167,"Home Depot","3/8 in. x 6 in. Carriage Bolt (fully threaded)","https://www.homedepot.com/p/Everbilt-3-8-in-16-x-6-in-Zinc-Plated-Carriage-Bolt-800316/204633673"]
[10.47,240664,"Home Depot","6 in. Zinc Plated Heavy Duty Barrel Bolt","https://www.homedepot.com/p/Everbilt-6-in-Zinc-Plated-Heavy-Duty-Barrel-Bolt-15149/202033963"]
[18.98,253942,"Home Depot","2 in. x 6 in. x 16 ft. spruce, pine, or fir lumber","https://www.homedepot.com/p/WeatherShield-5-4-in-x-6-in-x-16-ft-Ground-Contact-Pressure-Treated-Premium-Southern-Yellow-Pine-Decking-Board-253944/206966950?keyword=1-1%2F4+in.+x+6+in.+x+16+ft.+Pressure-Treated+Decking+Board"]
[8.65,914681,"Home Depot","1 in. x 4 in. x 8 ft. spruce, pine, or fir lumber","https://www.homedepot.com/p/1-in-x-4-in-x-8-ft-Premium-Kiln-Dried-Square-Edge-Whitewood-Common-Board-914681/100023465"]
[5.97,479652,"Home Depot","1.25 in. drywall screws, 1 lb. box","https://www.homedepot.com/p/Grip-Rite-6-x-1-1-4-in-2-Phillips-Bugle-Head-Coarse-Thread-Sharp-Point-Drywall-Screws-1-lb-Pack-114CDWS1/100152392"]
[9.98,292141,"Home Depot","3/32 in.-1/8 in. Cable Clamps, pack of 3","https://www.homedepot.com/p/Everbilt-3-32-in-x-1-8-in-Stainless-Steel-Clamp-Set-3-Piece-43074/205883048"]
[0.98,333431,"Home Depot","20-Gauge 1-1/4 in. x 9 in. Strap Ties","https://www.homedepot.com/p/Simpson-Strong-Tie-LSTA-1-1-4-in-x-9-in-20-Gauge-Galvanized-Strap-Tie-LSTA9/202255804?keyword=lsta9"]
[40.67,301878333,"Home Depot","5/16 in. x 6 in. Heavy Duty Wood Screws, pkg of 25","https://www.homedepot.com/p/GRK-Fasteners-5-16-in-x-6-in-Star-Drive-Low-Profile-Washer-Head-Wood-Screw-25-Pack-95300/311953212"]
[1.48,335216,"Home Depot","18-Gauge 3-1/4 in. Gusset Angle Corner Braces","https://www.homedepot.com/p/Simpson-Strong-Tie-GA-3-1-4-in-18-Gauge-Galvanized-Gusset-Angle-GA2/100375243?N=5yc1vZaqzs"]
[6.98,461393,"Home Depot","6 in. x 6 in. 14-Gauge L Straps","https://www.homedepot.com/p/Simpson-Strong-Tie-6-in-x-6-in-14-Gauge-Galvanized-L-Strap-66L/100374887"]
[4.25,711786,"Home Depot","4 in. Door Hinges","https://www.homedepot.com/p/Everbilt-4-in-Satin-Nickel-5-8-in-Radius-Door-Hinge-15002/202558089"]
[5.27,671223,"Home Depot","3/8 in. x 36 in. Zinc-plated Threaded Rod","https://www.homedepot.com/p/Everbilt-3-8-in-x-36-in-Zinc-Threaded-Rod-802237/204273970"]
[1.58,879282,"Home Depot","8 in. Wooden Shims, bundle of 12","https://www.homedepot.com/p/8-in-Pine-Shims-12-Pack-WSSHW08/300723328"]
[0.24,2772,"www.boltdepot.com","Carriage bolts, Zinc plated steel, 5/16\"-18 x 1-3/4\"","https://boltdepot.com/Product-Details?product=2772"]
[0.31,2777,"www.boltdepot.com","Carriage bolts, Zinc plated steel, 5/16\"-18 x 3\"","https://boltdepot.com/Product-Details?product=2777"]
[14.57,162330,"Home Depot","#10 x 3/4 in. External Hex Flange Hex-Head Self-Drilling Screws (150-Pack)","https://www.homedepot.com/p/Teks-10-x-3-4-in-External-Hex-Flange-Hex-Head-Self-Drilling-Screws-150-Pack-21320/100138326"]
[0.37,2779,"www.boltdepot.com","Carriage bolts, Zinc plated steel, 5/16\"-18 x 3-1/2\"","https://boltdepot.com/Product-Details?product=2779"]
[0.41,2780,"www.boltdepot.com","Carriage bolts, Zinc plated steel, 5/16\"-18 x 4\"","https://boltdepot.com/Product-Details?product=2780"]
[0.19,"BB158","Chain Link Fittings","Chain Link 1 5/8\" Brace Band [12 Gauge] - Rail End Band","https://chainlinkfittings.com/store/1-5-8-brace-bands-chain-link-fence.html"]
[0.63,2784,"www.boltdepot.com","Carriage bolts, Zinc plated steel, 5/16\"-18 x 6\"","https://boltdepot.com/Product-Details?product=2784"]
[5.1200000000000002E-2,"CB382","Chain Link Fittings","Chain Link 3/8\" x 2\" Carriage Bolt & Nut","https://chainlinkfittings.com/store/3-8-x-2-carriage-bolts-and-nuts.html"]
[0.05,2977,"www.boltdepot.com","5/16\" flat washers","https://boltdepot.com/Product-Details?product=2977"]
[0.32,"CB5162HDG","Chain Link Fittings","Chain Link 5/16\" x 2\" Carriage Bolt & Nut","https://chainlinkfittings.com/store/5-16-x-2-carriage-bolts-and-nuts.html"]
[0.08,3025,"www.boltdepot.com","5/16\" lock washers","https://boltdepot.com/Product-Details?product=3025"]
[0.19,"CB51614HDG","Chain Link Fittings","Chain Link 5/16\" x 1 1/4\" Carriage Bolt & Nut","https://chainlinkfittings.com/store/carriage-bolts-with-nut.html"]
[0.32,"ERC1313","Chain Link Fittings","Chain Link 1 3/8\" x 1 3/8\" End Rail Clamp - Rail Band, T Clamp","https://chainlinkfittings.com/store/1-3-8-x-1-3-8-end-rail-clamp-rail-bands-t-clamps.html"]
[13.893000000000001,"PTR","Chain Link Fittings","Chain Link 1 5/8\" Gate Pipe Track Safety Roller w/ 5\" Wheel","https://chainlinkfittings.com/store/pipe-track-roller-galvanized-chain-link-fence.html"]
[0.06,2978,"www.boltdepot.com","SAE flat washers, Zinc plated steel, 3/8\"","https://boltdepot.com/Product-Details?product=2978"]
[0.32,"LRC1313","Chain Link Fittings","Chain Link 1 3/8\" x 1 3/8\" Line Rail Clamp - Boulevard Clamp","https://chainlinkfittings.com/store/1-3-8-x-1-3-8-line-rail-clamps-for-chain-link-fencing.html"]
[0.09,3026,"www.boltdepot.com","Lock washers, Zinc plated steel, 3/8\"","https://boltdepot.com/Product-Details?product=3026"]
[0.19,7242,"www.boltdepot.com","Hex nylon insert lock nuts, Zinc plated steel, 3/8\"-16","https://boltdepot.com/Product-Details?product=7242"]
[8.24,7783,"www.boltdepot.com","#7 x 1.25 in. wood screw, box of 100","https://boltdepot.com/Product-Details?product=7783"]
[1.1499999999999999,12280,"www.boltdepot.com","Wire eye bolts (w/ nuts), Zinc plated steel, 5/16\"-18 x 1-3/4\"","https://boltdepot.com/Product-Details?product=12280"]
[1.69,12292,"www.boltdepot.com","Wire eye bolts (w/ nuts), Zinc plated steel, 3/8\"-16 x 2-1/2\"","https://boltdepot.com/Product-Details?product=12292"]
[2.4300000000000002,12492,"www.boltdepot.com","U-Bolts, Round bend, Zinc plated steel, 5/16\"-18, 1-3/8\" x 2-1/2\"","https://boltdepot.com/Product-Details?product=12492"]
[1.59,12528,"www.boltdepot.com","J-Bolts w/ nuts, Zinc plated steel, 5/16\"-18 x 5\"","https://boltdepot.com/Product-Details?product=12528"]
[1.83,12529,"www.boltdepot.com","5/16\"-18 x 7\" J-bolt","https://boltdepot.com/Product-Details?product=12529"]

{"sheet":"Stationary Caterpillar","index":1,"n_rows":36,"n_cols":13,"rows_kept":36,"cut":false,"hidden":false,"merged":[[17,3,17,4],[16,3,16,4],[12,3,12,4],[13,1,13,2],[1,1,1,8],[2,1,2,8],[5,1,5,4],[7,1,7,2],[8,1,8,2],[3,1,3,8],[12,5,12,8],[11,5,11,8],[11,1,11,2],[12,1,12,2],[9,1,9,2],[34,0,34,8],[35,0,35,8],[29,3,29,4],[30,3,30,4],[15,3,15,4],[20,3,20,4],[26,3,26,4],[27,3,27,4],[18,3,18,4],[19,3,19,4],[21,3,21,4],[22,3,22,4],[23,3,23,4],[24,3,24,4],[25,3,25,4],[28,3,28,4]]}
[]
[null,"12ft.-Wide Caterpillar Tunnel Calculator"]
[null,"***Fill in the items below and the calculator will do the rest.***"]
[null,"All prices are estimations. Prices will vary and do not include shipping costs or tax. Vendors and part #'s for pipe and other accessories are provided for your convenience only. Johnny's has no affiliation with these companies, other than purchasing these supplies from them and finding their prices competitive."]
[]
[null,"Dimensions, Specs",null,null,null,null,null,"Square Feet",{"$f":"D12*D8","v":0}]
[]
[null,"Length",null,null,"feet",null,null,"Cost / Sq. Ft.",{"$f":"IFERROR(I32/I6,\"\")","v":""}]
[null,"Spacing",null,null,"feet",null,null,null,null,null,null,{"$f":"_xlfn._xlws.FILTER(_xlfn.SEQUENCE(3,,4),MOD($D$8/_xlfn.SEQUENCE(3,,4),1)=0=TRUE,\"Length must be divisable by 4,5 or 6\")","v":4}]
[null,"Grnd Posts",null,null,"feet",null,null,null,null,null,null,5]
[null,null,null,null,null,null,null,null,null,null,null,6]
[null,"Width",null,12,"feet"]
[null,"# Segments",null,{"$f":"IF(OR(D8=\"\",D8=0,D9=\"\",D9=0),\"\",D8/D9)","v":""},null,{"$f":"IF(D10=3,\"\",IF(D10=4,\"\", IF(D10=\"\",\"\",\"***Please enter only 3 or 4 for Ground Post Height.***\")))","v":""}]
[null,"# Bows",null,{"$f":"IF(D13=\"\",\"\",D13+1)","v":""}]
[]
[null,"Qty","Unit","Part#",null,"Vendor","Description","Price","Ext"]
[null,{"$f":"IF(L17=\"\",\"\",1)","v":""},{"$f":"IF($L17=\"\",\"\",\"each\")","v":""},{"$f":"IF($L17=\"\",\"\",HYPERLINK(_xlfn.XLOOKUP($L17,Lookup_Table!$B:$B,Lookup_Table!$E:$E),$L17))","v":""},null,{"$f":"IF($L17=\"\",\"\",_xlfn.XLOOKUP($L17,Lookup_Table[Item '#],Lookup_Table[Table20.Brand]))","v":""},{"$f":"IF($L17=\"\",\"\",CONCATENATE(_xlfn.XLOOKUP($L17,Lookup_Table[Item '#],Lookup_Table[Table20.Description]),\" \",$M17))","v":""},{"$f":"IF($L17=\"\",\"\",_xlfn.XLOOKUP($L17,Lookup_Table[Item '#],Lookup_Table[Price]))","v":""},{"$f":"IF(B17=\"\",\"\", B17*H17)","v":""},null,null,{"$f":"IF(OR(OR($D$8=\"\",$D$8=0),OR($D$9=\"\",$D$9=0),OR($D$10=\"\",$D$10=0)),\"\",9018)","v":""}]
[null,{"$f":"IF(L18=\"\",\"\",D8*2/D9+2)","v":""},{"$f":"IF($L18=\"\",\"\",\"each\")","v":""},{"$f":"IF($L18=\"\",\"\",HYPERLINK(_xlfn.XLOOKUP($L18,Lookup_Table!$B:$B,Lookup_Table!$E:$E),$L18))","v":""},null,{"$f":"IF($L18=\"\",\"\",_xlfn.XLOOKUP($L18,Lookup_Table[Item '#],Lookup_Table[Table20.Brand]))","v":""},{"$f":"IF($L18=\"\",\"\",CONCATENATE(_xlfn.XLOOKUP($L18,Lookup_Table[Item '#],Lookup_Table[Table20.Description]),\" \",$M18))","v":""},{"$f":"IF($L18=\"\",\"\",_xlfn.XLOOKUP($L18,Lookup_Table[Item '#],Lookup_Table[Price]))","v":""},{"$f":"IF(B18=\"\",\"\", B18*H18)","v":""},null,null,{"$f":"IF(OR(OR($D$8=\"\",$D$8=0),OR($D$9=\"\",$D$9=0),OR($D$10=\"\",$D$10=0)),\"\",181697)","v":""},"for bows"]
[null,{"$f":"IF(L19=\"\",\"\",ROUNDUP(D8/10,0))","v":""},"",{"$f":"IF($L19=\"\",\"\",HYPERLINK(_xlfn.XLOOKUP($L19,Lookup_Table!$B:$B,Lookup_Table!$E:$E),$L19))","v":""},null,{"$f":"IF($L19=\"\",\"\",_xlfn.XLOOKUP($L19,Lookup_Table[Item '#],Lookup_Table[Table20.Brand]))","v":""},{"$f":"IF($L19=\"\",\"\",CONCATENATE(_xlfn.XLOOKUP($L19,Lookup_Table[Item '#],Lookup_Table[Table20.Description]),\" \",$M19))","v":""},{"$f":"IF($L19=\"\",\"\",_xlfn.XLOOKUP($L19,Lookup_Table[Item '#],Lookup_Table[Price]))","v":""},"",null,null,{"$f":"IF(OR(OR($D$8=\"\",$D$8=0),OR($D$9=\"\",$D$9=0),OR($D$10=\"\",$D$10=0)),\"\",181697)","v":""},"for ridge pole"]
[null,{"$f":"IF(L20=\"\",\"\",B18/2)","v":""},"",{"$f":"IF($L20=\"\",\"\",HYPERLINK(_xlfn.XLOOKUP($L20,Lookup_Table!$B:$B,Lookup_Table!$E:$E),$L20))","v":""},null,{"$f":"IF($L20=\"\",\"\",_xlfn.XLOOKUP($L20,Lookup_Table[Item '#],Lookup_Table[Table20.Brand]))","v":""},{"$f":"IF($L20=\"\",\"\",CONCATENATE(_xlfn.XLOOKUP($L20,Lookup_Table[Item '#],Lookup_Table[Table20.Description]),\" \",$M20))","v":""},{"$f":"IF($L20=\"\",\"\",_xlfn.XLOOKUP($L20,Lookup_Table[Item '#],Lookup_Table[Price]))","v":""},"",null,null,{"$f":"IF(OR(OR($D$8=\"\",$D$8=0),OR($D$9=\"\",$D$9=0),OR($D$10=\"\",$D$10=0)),\"\",IF($D$10=3,320858, IF($D$10=4,623105,\"\")))","v":""},"for ground posts"]
[null,{"$f":"IF(L21=\"\",\"\",1)","v":""},"",{"$f":"IF($L21=\"\",\"\",HYPERLINK(_xlfn.XLOOKUP($L21,Lookup_Table!$B:$B,Lookup_Table!$E:$E),$L21))","v":""},null,{"$f":"IF($L21=\"\",\"\",_xlfn.XLOOKUP($L21,Lookup_Table[Item '#],Lookup_Table[Table20.Brand]))","v":""},{"$f":"IF($L21=\"\",\"\",CONCATENATE(_xlfn.XLOOKUP($L21,Lookup_Table[Item '#],Lookup_Table[Table20.Description]),\" \",$M21))","v":""},{"$f":"IF($L21=\"\",\"\",_xlfn.XLOOKUP($L21,Lookup_Table[Item '#],Lookup_Table[Price]))","v":""},"",null,null,{"$f":"IF(OR(OR($D$8=\"\",$D$8=0),OR($D$9=\"\",$D$9=0),OR($D$10=\"\",$D$10=0)),\"\",9482)","v":""}]
[null,{"$f":"IF(L22=\"\",\"\",ROUNDUP((D14)/2,0))","v":""},"",{"$f":"IF($L22=\"\",\"\",HYPERLINK(_xlfn.XLOOKUP($L22,Lookup_Table!$B:$B,Lookup_Table!$E:$E),$L22))","v":""},null,{"$f":"IF($L22=\"\",\"\",_xlfn.XLOOKUP($L22,Lookup_Table[Item '#],Lookup_Table[Table20.Brand]))","v":""},{"$f":"IF($L22=\"\",\"\",CONCATENATE(_xlfn.XLOOKUP($L22,Lookup_Table[Item '#],Lookup_Table[Table20.Description]),\" \",$M22))","v":""},{"$f":"IF($L22=\"\",\"\",_xlfn.XLOOKUP($L22,Lookup_Table[Item '#],Lookup_Table[Price]))","v":""},"",null,null,{"$f":"IF(OR(OR($D$8=\"\",$D$8=0),OR($D$9=\"\",$D$9=0),OR($D$10=\"\",$D$10=0)),\"\",9542)","v":""}]
[null,{"$f":"IF(L23=\"\",\"\",ROUNDUP(2.1*D14/100,0))","v":""},"",{"$f":"IF($L23=\"\",\"\",HYPERLINK(_xlfn.XLOOKUP($L23,Lookup_Table!$B:$B,Lookup_Table!$E:$E),$L23))","v":""},null,{"$f":"IF($L23=\"\",\"\",_xlfn.XLOOKUP($L23,Lookup_Table[Item '#],Lookup_Table[Table20.Brand]))","v":""},{"$f":"IF($L23=\"\",\"\",CONCATENATE(_xlfn.XLOOKUP($L23,Lookup_Table[Item '#],Lookup_Table[Table20.Description]),\" \",$M23))","v":""},{"$f":"IF($L23=\"\",\"\",_xlfn.XLOOKUP($L23,Lookup_Table[Item '#],Lookup_Table[Price]))","v":""},"",null,null,{"$f":"IF(OR(OR($D$8=\"\",$D$8=0),OR($D$9=\"\",$D$9=0),OR($D$10=\"\",$D$10=0)),\"\",2405)","v":""}]
[null,{"$f":"IF(L24=\"\",\"\",2*D14)","v":""},"",{"$f":"IF($L24=\"\",\"\",HYPERLINK(_xlfn.XLOOKUP($L24,Lookup_Table!$B:$B,Lookup_Table!$E:$E),$L24))","v":""},null,{"$f":"IF($L24=\"\",\"\",_xlfn.XLOOKUP($L24,Lookup_Table[Item '#],Lookup_Table[Table20.Brand]))","v":""},{"$f":"IF($L24=\"\",\"\",CONCATENATE(_xlfn.XLOOKUP($L24,Lookup_Table[Item '#],Lookup_Table[Table20.Description]),\" \",$M24))","v":""},{"$f":"IF($L24=\"\",\"\",_xlfn.XLOOKUP($L24,Lookup_Table[Item '#],Lookup_Table[Price]))","v":""},"",null,null,{"$f":"IF(OR(OR($D$8=\"\",$D$8=0),OR($D$9=\"\",$D$9=0),OR($D$10=\"\",$D$10=0)),\"\",12528)","v":""},"for lacing connection"]
[null,{"$f":"IF(L25=\"\",\"\",B24)","v":""},"",{"$f":"IF($L25=\"\",\"\",HYPERLINK(_xlfn.XLOOKUP($L25,Lookup_Table!$B:$B,Lookup_Table!$E:$E),$L25))","v":""},null,{"$f":"IF($L25=\"\",\"\",_xlfn.XLOOKUP($L25,Lookup_Table[Item '#],Lookup_Table[Table20.Brand]))","v":""},{"$f":"IF($L25=\"\",\"\",CONCATENATE(_xlfn.XLOOKUP($L25,Lookup_Table[Item '#],Lookup_Table[Table20.Description]),\" \",$M25))","v":""},{"$f":"IF($L25=\"\",\"\",_xlfn.XLOOKUP($L25,Lookup_Table[Item '#],Lookup_Table[Price]))","v":""},"",null,null,{"$f":"IF(OR(OR($D$8=\"\",$D$8=0),OR($D$9=\"\",$D$9=0),OR($D$10=\"\",$D$10=0)),\"\",2649)","v":""}]
[null,{"$f":"IF(L26=\"\",\"\",B24+B25)","v":""},"",{"$f":"IF($L26=\"\",\"\",HYPERLINK(_xlfn.XLOOKUP($L26,Lookup_Table!$B:$B,Lookup_Table!$E:$E),$L26))","v":""},null,{"$f":"IF($L26=\"\",\"\",_xlfn.XLOOKUP($L26,Lookup_Table[Item '#],Lookup_Table[Table20.Brand]))","v":""},{"$f":"IF($L26=\"\",\"\",CONCATENATE(_xlfn.XLOOKUP($L26,Lookup_Table[Item '#],Lookup_Table[Table20.Description]),\" \",$M26))","v":""},{"$f":"IF($L26=\"\",\"\",_xlfn.XLOOKUP($L26,Lookup_Table[Item '#],Lookup_Table[Price]))","v":""},"",null,null,{"$f":"IF(OR(OR($D$8=\"\",$D$8=0),OR($D$9=\"\",$D$9=0),OR($D$10=\"\",$D$10=0)),\"\",3025)","v":""}]
[null,{"$f":"IF(L27=\"\",\"\",IF(D10=4,D14*2,\"\"))","v":""},"",{"$f":"IF($L27=\"\",\"\",HYPERLINK(_xlfn.XLOOKUP($L27,Lookup_Table!$B:$B,Lookup_Table!$E:$E),$L27))","v":""},null,{"$f":"IF($L27=\"\",\"\",_xlfn.XLOOKUP($L27,Lookup_Table[Item '#],Lookup_Table[Table20.Brand]))","v":""},{"$f":"IF($L27=\"\",\"\",CONCATENATE(_xlfn.XLOOKUP($L27,Lookup_Table[Item '#],Lookup_Table[Table20.Description]),\" \",$M27))","v":""},{"$f":"IF($L27=\"\",\"\",_xlfn.XLOOKUP($L27,Lookup_Table[Item '#],Lookup_Table[Price]))","v":""},"",null,null,{"$f":"IF(D10=4,IF(OR(OR($D$8=\"\",$D$8=0),OR($D$9=\"\",$D$9=0),OR($D$10=\"\",$D$10=0)),\"\",199),\"\")","v":""},"for bows"]
[null,{"$f":"IF(L28=\"\",\"\",B27)","v":""},"",{"$f":"IF($L28=\"\",\"\",HYPERLINK(_xlfn.XLOOKUP($L28,Lookup_Table!$B:$B,Lookup_Table!$E:$E),$L28))","v":""},null,{"$f":"IF($L28=\"\",\"\",_xlfn.XLOOKUP($L28,Lookup_Table[Item '#],Lookup_Table[Table20.Brand]))","v":""},{"$f":"IF($L28=\"\",\"\",CONCATENATE(_xlfn.XLOOKUP($L28,Lookup_Table[Item '#],Lookup_Table[Table20.Description]),\" \",$M28))","v":""},{"$f":"IF($L28=\"\",\"\",_xlfn.XLOOKUP($L28,Lookup_Table[Item '#],Lookup_Table[Price]))","v":""},"",null,null,{"$f":"IF(D10=4,IF(OR(OR($D$8=\"\",$D$8=0),OR($D$9=\"\",$D$9=0),OR($D$10=\"\",$D$10=0)),\"\",2624),\"\")","v":""}]
[null,{"$f":"IF(L29=\"\",\"\",IF(ROUNDUP(2*D13*SQRT(400+D9*D9),0)<1001,1,IF(ROUNDUP(2*D13*SQRT(400+D9*D9),0)<2001,2,IF(ROUNDUP(2*D13*SQRT(400+D9*D9),0)<3001,3,IF(ROUNDUP(2*D13*SQRT(400+D9*D9),0)<4001,IF(ROUNDUP(2*D13*SQRT(400+D9*D9),0)<5001,4,IF(ROUNDUP(2*D13*SQRT(400+D9*D9),0)<6001,5,IF(ROUNDUP(2*D13*SQRT(400+D9*D9),0)<7001,6,IF(ROUNDUP(2*D13*SQRT(400+D9*D9),0)<8001,7,8)))))))))","v":""},"",{"$f":"IF($L29=\"\",\"\",HYPERLINK(_xlfn.XLOOKUP($L29,Lookup_Table!$B:$B,Lookup_Table!$E:$E),$L29))","v":""},null,{"$f":"IF($L29=\"\",\"\",_xlfn.XLOOKUP($L29,Lookup_Table[Item '#],Lookup_Table[Table20.Brand]))","v":""},{"$f":"IF($L29=\"\",\"\",CONCATENATE(_xlfn.XLOOKUP($L29,Lookup_Table[Item '#],Lookup_Table[Table20.Description]),\" \",$M29))","v":""},{"$f":"IF($L29=\"\",\"\",_xlfn.XLOOKUP($L29,Lookup_Table[Item '#],Lookup_Table[Price]))","v":""},"",null,null,{"$f":"IF(OR(OR($D$8=\"\",$D$8=0),OR($D$9=\"\",$D$9=0),OR($D$10=\"\",$D$10=0)),\"\",\"550C-WHT1000\")","v":""},"for lacing"]
[null,{"$f":"IF(L30=\"\",\"\",4)","v":""},"",{"$f":"IF($L30=\"\",\"\",HYPERLINK(_xlfn.XLOOKUP($L30,Lookup_Table!$B:$B,Lookup_Table!$E:$E),$L30))","v":""},null,{"$f":"IF($L30=\"\",\"\",_xlfn.XLOOKUP($L30,Lookup_Table[Item '#],Lookup_Table[Table20.Brand]))","v":""},{"$f":"IF($L30=\"\",\"\",CONCATENATE(_xlfn.XLOOKUP($L30,Lookup_Table[Item '#],Lookup_Table[Table20.Description]),\" \",$M30))","v":""},{"$f":"IF($L30=\"\",\"\",_xlfn.XLOOKUP($L30,Lookup_Table[Item '#],Lookup_Table[Price]))","v":""},"",null,null,{"$f":"IF(OR(OR($D$8=\"\",$D$8=0),OR($D$9=\"\",$D$9=0),OR($D$10=\"\",$D$10=0)),\"\",175544)","v":""},"for ends"]
[null,{"$f":"IF(L31=\"\",\"\",1)","v":""},"",{"$f":"IF($L31=\"\",\"\",HYPERLINK(_xlfn.XLOOKUP($L31,Lookup_Table!$B:$B,Lookup_Table!$E:$E),$L31))","v":""},null,{"$f":"IF($L31=\"\",\"\",_xlfn.XLOOKUP($L31,Lookup_Table[Item '#],Lookup_Table[Table20.Brand]))","v":""},{"$f":"IF($L31=\"\",\"\",CONCATENATE(_xlfn.XLOOKUP($L31,Lookup_Table[Item '#],Lookup_Table[Table20.Description]),\" \",$M31))","v":""},{"$f":"IF($L31=\"\",\"\",_xlfn.XLOOKUP($L31,Lookup_Table[Item '#],Lookup_Table[Price]))","v":""},"",null,null,{"$f":"IF(OR(OR($D$8=\"\",$D$8=0),OR($D$9=\"\",$D$9=0),OR($D$10=\"\",$D$10=0)),\"\",IF(OR($D$8=\"\", $D$10=\"\"),\"\", IF(AND($D$8<51,$D$10=3),9630, IF(AND($D$8<51,$D$10=4),9645, IF(AND($D$8<101,$D$10=3),9644, IF(AND($D$8<101,$D$10=4),9701,””))))))","v":""}]
[null,null,null,null,null,null,null,"Total Cost",{"$f":"SUM(I17:I31)","v":0}]
[]
[null,null,null,null,null,null,null,null,"(PRICING: SEP25)"]
["© JOHNNY SELECTED SEEDS.   ALL RIGHTS RESERVED.   |  955 BENTON AVENUE   WINSLOW   MAINE   04901"]
["JOHNNY'S SELECTED SEEDS IS A PRIVATELY HELD, EMPLOYEE-OWNED COMPANY."]